fUST/lending_fUST_20250226
["ID","MTS","AMOUNT","RATE_DAILY","PERIOD"]
[354442376,1740499477055,-300.0,0.00017919,2]
[354442377,1740499477076,-395.14065786,0.0001792,2]
[354442378,1740499477098,-500.0,0.0001792,2]
[354442379,1740499477119,-500.0,0.0001792,2]
[354442380,1740499477141,-500.0,0.0001792,2]
[354442381,1740499477162,-500.0,0.0001792,2]
[354442382,1740499477184,-395.15815221,0.0001792,2]
[354442383,1740499477205,-238.69,0.0001801,2]
[354442384,1740499477228,-500.0,0.0001812,2]
[354442385,1740499477250,-800.0,0.0001812,2]
[354442386,1740499477272,-800.0,0.0001812,2]
[354442387,1740499477293,-800.0,0.0001812,2]
[354442388,1740499477315,-800.0,0.0001812,2]
[354442389,1740499477341,-800.0,0.0001812,2]
[354442390,1740499477363,-800.0,0.0001812,2]
[354442391,1740499477385,-800.0,0.0001812,2]
[354442392,1740499477411,-800.0,0.0001812,2]
[354442393,1740499477432,-800.0,0.0001812,2]
[354442394,1740499477455,-800.0,0.0001812,2]
[354442395,1740499477479,-800.0,0.0001812,2]
[354442396,1740499477501,-800.0,0.0001812,2]
[354442397,1740499477523,-1330.27529037,0.0001812,2]
[354442398,1740499477544,-500.0,0.0001812,2]
[354442399,1740499477568,-500.0,0.0001812,2]
[354442400,1740499477589,-500.0,0.0001812,2]
[354442401,1740499477611,-500.0,0.0001812,2]
[354442402,1740499477632,-500.0,0.0001812,2]
[354442403,1740499477653,-500.0,0.0001812,2]
[354442404,1740499477675,-240.73589956,0.0001812,2]
[354442405,1740499613138,-259.26410044,0.0001812,2]
[354442406,1740499613161,-101.07871277,0.0001812,2]
[354442776,1740499832500,-358.50296385,0.00017759,2]
[354442778,1740499832509,-883.24840893,0.00017938,2]
[354442780,1740499832519,-300.0,0.00018119,2]
[354442782,1740499832530,-398.92128723,0.0001812,2]
[354442784,1740499832539,-669.72470963,0.0001812,2]
[354442786,1740499832548,-500.0,0.0001812,2]
[354442788,1740499832560,-500.0,0.0001812,2]
[354442790,1740499832570,-700.0,0.0001812,2]
[354442792,1740499832579,-172.196455,0.00018265,2]
[354442823,1740499832863,-167.22,0.000186,2]
[354442825,1740499832874,-183.1990012,0.0001922,2]
[354442828,1740499832885,-3224.1161151,0.0001932,2]
[354442830,1740499832895,-24900.0,0.0001943,2]
[354442832,1740499832905,-466.30296505,0.00019526,2]
[354442834,1740499832915,-207.3118144,0.00019686,2]
[354442836,1740499832924,-420.0,0.00019767,2]
[354442838,1740499832933,-465.06514825,0.00020503,2]
[354442840,1740499832943,-1249.0500666,0.000209,2]
[354442842,1740499832953,-152.0,0.00020995,2]
[354442844,1740499832963,-587.0,0.00021566,2]
[354442846,1740499832974,-1249.0500665,0.00022245,3]
[354442848,1740499832984,-172.196455,0.00022831,2]
[354442850,1740499832994,-238.69,0.0002299,2]
[354442852,1740499833004,-500.0,0.00023,10]
[354442854,1740499833014,-800.0,0.00023,10]
[354442856,1740499833025,-800.0,0.00023,10]
[354442858,1740499833036,-800.0,0.00023,10]
[354442860,1740499833046,-800.0,0.00023,10]
[354442862,1740499833057,-800.0,0.00023,10]
[354442865,1740499833089,-800.0,0.00023,10]
[354442867,1740499833099,-800.0,0.00023,10]
[354442869,1740499833110,-800.0,0.00023,10]
[354442871,1740499833120,-800.0,0.00023,10]
[354442873,1740499833130,-800.0,0.00023,10]
[354442875,1740499833139,-800.0,0.00023,10]
[354442877,1740499833149,-800.0,0.00023,10]
[354442879,1740499833159,-800.0,0.00023,10]
[354442881,1740499833168,-500.0,0.00023,10]
[354442883,1740499833178,-500.0,0.00023,10]
[354442885,1740499833188,-500.0,0.00023,10]
[354442887,1740499833198,-318.72284675,0.00023,10]
[354443015,1740499838185,-181.27715325,0.00023,10]
[354443018,1740499838195,-500.0,0.00023,10]
[354443020,1740499838205,-500.0,0.00023,10]
[354443022,1740499838215,-500.0,0.00023,10]
[354443024,1740499838224,-500.0,0.00023,10]
[354443026,1740499838234,-500.0,0.00023,10]
[354443028,1740499838244,-1179.26999364,0.00023,10]
[354443030,1740499838253,-500.0,0.00023,10]
[354443032,1740499838263,-500.0,0.00023,10]
[354443034,1740499838273,-500.0,0.00023,10]
[354443036,1740499838282,-500.0,0.00023,10]
[354443038,1740499838292,-500.0,0.00023,10]
[354443040,1740499838301,-387.81716723,0.00023249,2]
[354443042,1740499838314,-285.12296952,0.00023249,2]
[354443044,1740499838326,-500.0,0.00023274,10]
[354443046,1740499838336,-570.0,0.00023528,2]
[354443048,1740499838345,-1249.0500665,0.0002359,3]
[354443050,1740499838355,-471.69444693,0.00024333,2]
[354443053,1740499838371,-1515.05165627,0.00024333,2]
[354443055,1740499838380,-197.68737512,0.00024603,2]
[354443057,1740499838390,-300.0,0.00024603,2]
[354443059,1740499838399,-380.0,0.00024658,2]
[354443061,1740499838409,-1249.0500665,0.00024934,4]
[354443063,1740499838418,-635.56488133,0.00025575,2]
[354443065,1740499838428,-678.26268658,0.00026279,4]
[354443345,1740499841363,-269.64762957,0.00019426,2]
[354443347,1740499841373,-570.78737992,0.00026279,4]
[354443349,1740499841383,-500.0,0.000266,2]
[354443351,1740499841392,-156.76,0.000266,31]
[354443353,1740499841403,-156.76,0.000266,31]
[354443356,1740499841427,-238.69,0.0002698,2]
[354443358,1740499841438,-172.196455,0.00027397,2]
[354443360,1740499841448,-1249.0500665,0.00027624,4]
[354443362,1740499841459,-24692.9646614,0.00028034,3]
[354443365,1740499841469,-160.0,0.00028034,3]
[354443367,1740499841480,-1249.0500665,0.00028969,5]
[354443369,1740499841492,-1179.26999364,0.00029,10]
[354443371,1740499841505,-453.59626982,0.00029595,2]
[354443373,1740499841515,-200.0,0.0003,30]
[354443375,1740499841525,-212.0,0.0003,2]
[354443377,1740499841535,-160.0,0.0003,10]
[354443379,1740499841546,-500.0,0.0003029,5]
[354443381,1740499841556,-163.07754488,0.0003029,5]
[354443383,1740499841567,-1249.0500665,0.00030314,5]
[354443385,1740499841581,-19603.87691479,0.00030488,2]
[354443387,1740499841592,-24692.9646614,0.00030681,3]
[354443389,1740499841603,-1179.26999364,0.00030681,3]
[354443391,1740499841614,-160.0,0.00030681,3]
[354443393,1740499841624,-500.0,0.00031324,2]
[354443395,1740499841634,-500.0,0.00031324,5]
[354443397,1740499841644,-710.87807612,0.00031435,2]
[354443399,1740499841654,-500.0,0.00031451,5]
[354443401,1740499841665,-500.0,0.00031451,5]
[354443403,1740499841675,-471.14705293,0.00031451,5]
[354443405,1740499841686,-500.0,0.00031451,5]
[354443408,1740499841697,-500.0,0.00031451,5]
[354443410,1740499841707,-313.54537885,0.00031451,5]
[354443412,1740499841718,-500.0,0.00031451,5]
[354443414,1740499841728,-584.051155,0.00031451,5]
[354443416,1740499841739,-270.62146187,0.00031451,5]
[354443418,1740499841749,-401.68730742,0.00031451,5]
[354443420,1740499841760,-500.0,0.00031451,5]
[354443422,1740499841770,-155.14751784,0.00031451,5]
[354443424,1740499841780,-260.47209742,0.00031451,5]
[354443426,1740499841792,-205.09072233,0.00031451,5]
[354443429,1740499841802,-500.0,0.00031451,5]
[354443431,1740499841813,-158.86434559,0.00031451,5]
[354443433,1740499841827,-641.86543425,0.00031451,5]
[354443435,1740499841837,-500.65570921,0.00031451,5]
[354443437,1740499841847,-503.67890754,0.00031451,5]
[354443439,1740499841858,-500.0,0.00031451,5]
[354443441,1740499841868,-500.0,0.00031451,5]
[354443443,1740499841878,-500.0,0.00031451,5]
[354443445,1740499841888,-1249.0500665,0.00031659,6]
[354443447,1740499841899,-326.19620691,0.00032222,120]
[354443449,1740499841909,-500.0,0.00032357,5]
[354443451,1740499841918,-500.0,0.00032726,5]
[354443453,1740499841929,-500.0,0.00032726,5]
[354443456,1740499841939,-151.1363072,0.00032811,5]
[354443458,1740499841949,-500.0,0.00032811,2]
[354443460,1740499841959,-300.0,0.00032811,5]
[354443462,1740499841968,-500.0,0.00032811,5]
[354443464,1740499841978,-500.0,0.00032925,5]
[354443466,1740499841988,-212.0,0.00033,2]
[354443468,1740499841998,-212.0,0.00033,2]
[354443470,1740499842008,-1249.0500665,0.00033003,6]
[354443472,1740499842019,-500.0,0.00033521,5]
[354443474,1740499842029,-500.0,0.00033521,5]
[354443476,1740499842039,-160.93276011,0.00033521,5]
[354443478,1740499842049,-386.11938022,0.00033521,5]
[354443481,1740499842060,-400.17803338,0.00033521,5]
[354443483,1740499842070,-538.22414118,0.00033521,5]
[354443485,1740499842081,-251.01303338,0.00033521,5]
[354443487,1740499842091,-527.52432232,0.00033521,5]
[354443489,1740499842101,-500.0,0.00033576,5]
[354443491,1740499842112,-501.94280497,0.00033576,5]
[354443493,1740499842122,-808.574,0.00033887,37]
[354443495,1740499842132,-175.19266628,0.00033887,37]
[354443497,1740499842143,-1249.0500665,0.00034348,6]
[354443499,1740499842153,-164.78299959,0.00034364,2]
[354443501,1740499842163,-150.5,0.00034458,120]
[354443503,1740499842173,-24692.9646614,0.00034459,3]
[354443505,1740499842183,-500.0,0.00034463,7]
[354443508,1740499842192,-500.0,0.00034463,7]
[354443510,1740499842202,-500.0,0.00034463,7]
[354443512,1740499842211,-785.45102281,0.00034463,7]
[354443514,1740499842221,-500.0,0.00034463,7]
[354443516,1740499842231,-785.45102281,0.00034463,7]
[354443518,1740499842241,-500.0,0.00034463,7]
[354443520,1740499842254,-500.0,0.00034463,7]
[354443522,1740499842268,-785.45102281,0.00034463,7]
[354443525,1740499842278,-500.0,0.00034463,7]
[354443527,1740499842289,-785.45102281,0.00034463,7]
[354443529,1740499842298,-500.0,0.00034463,7]
[354443531,1740499842308,-500.0,0.00034463,7]
[354443533,1740499842319,-785.45102281,0.00034463,7]
[354443535,1740499842331,-500.0,0.00034463,7]
[354443537,1740499842341,-500.0,0.00034463,7]
[354443539,1740499842350,-785.45102281,0.00034463,7]
[354443540,1740499842360,-500.0,0.00034463,7]
[354443542,1740499842370,-500.0,0.00034463,7]
[354443544,1740499842381,-785.45102281,0.00034463,7]
[354443546,1740499842391,-500.0,0.00034463,7]
[354443548,1740499842401,-500.0,0.00034463,7]
[354443550,1740499842411,-785.45102281,0.00034463,7]
[354443552,1740499842421,-160.0,0.00034464,7]
[354443554,1740499842432,-74078.8939842,0.00034465,3]
[354443556,1740499842442,-160.0,0.00034465,3]
[354443558,1740499842452,-24692.9646614,0.00034466,3]
[354443560,1740499842462,-150.5,0.00034468,120]
[354443562,1740499842473,-1179.26999364,0.00034469,3]
[354443564,1740499842482,-1179.26999364,0.00034476,3]
[354443567,1740499842494,-150.5,0.00034478,120]
[354443569,1740499842503,-49385.9293228,0.0003448,3]
[354443571,1740499842517,-1179.26999364,0.00034485,7]
[354443573,1740499842527,-49385.9293228,0.0003449,3]
[354443575,1740499842538,-500.0,0.000345,5]
[354443577,1740499842548,-505.39739813,0.000345,5]
[354443579,1740499842557,-500.65130225,0.000345,5]
[354443581,1740499842567,-168919.53,0.000345,30]
[354443583,1740499842580,-1179.26999364,0.000345,30]
[354443585,1740499842593,-200.0,0.00035,120]
[354443587,1740499842603,-51013.42475371,0.00035,120]
[354443589,1740499842614,-1179.26999364,0.00035,120]
[354443591,1740499842624,-500.0,0.00035616,30]
[354443594,1740499842634,-1249.0500665,0.00035693,7]
[354443596,1740499842644,-515.60521562,0.00035769,5]
[354443598,1740499842654,-212.0,0.00036,2]
[354443600,1740499842664,-212.0,0.00036,2]
[354443602,1740499842674,-1000.0,0.00036931,5]
[354443604,1740499842684,-500.56966165,0.00036931,5]
[354443606,1740499842694,-1000.0,0.00036931,5]
[354443609,1740499842705,-1000.0,0.00036931,5]
[354443612,1740499842715,-1000.0,0.00036931,5]
[354443615,1740499842725,-1000.0,0.00036931,5]
[354443618,1740499842735,-1000.0,0.00036931,5]
[354443621,1740499842745,-1249.0500665,0.00037038,7]
[354443624,1740499842755,-500.0,0.00037836,5]
[354443627,1740499842766,-615.38743237,0.00038205,5]
[354443630,1740499842776,-655.75478443,0.00038205,5]
[354443633,1740499842786,-1000.0,0.00038291,2]
[354443643,1740499842829,-1000.0,0.00038291,5]
[354443647,1740499842840,-1249.0500665,0.00038383,8]
[354443652,1740499842850,-850.53900052,0.00038404,5]
[354443655,1740499842861,-212.0,0.00039,2]
[354443658,1740499842871,-1000.0,0.00039,5]
[354443661,1740499842882,-201.22562,0.000393,120]
[354443663,1740499842892,-1444.0234568,0.00039326,7]
[354443666,1740499842903,-1249.0500665,0.00039728,8]
[354443669,1740499842913,-247.64631183,0.00039979,5]
[354443672,1740499842923,-93000.0,0.0004,2]
[354443675,1740499842933,-10000.0,0.0004,75]
[354443677,1740499842944,-500.0,0.00040186,94]
[354443679,1740499842954,-500.0,0.00040286,52]
[354443682,1740499842964,-500.0,0.00040386,84]
[354443685,1740499842974,-500.0,0.00040486,97]
[354443688,1740499842984,-500.0,0.00040586,46]
[354443692,1740499842994,-500.0,0.00040886,10]
[354443696,1740499843004,-160.0,0.00040914,2]
[354443700,1740499843014,-366.79013869,0.00040974,5]
[354443704,1740499843025,-500.0,0.00040974,5]
[354443707,1740499843034,-500.0,0.00040974,5]
[354443710,1740499843045,-500.0,0.00040974,5]
[354443713,1740499843054,-500.0,0.00040974,5]
[354443716,1740499843064,-563.71623255,0.00040974,5]
[354443720,1740499843075,-500.0,0.00040974,5]
[354443723,1740499843084,-500.0,0.00040974,5]
[354443726,1740499843094,-500.0,0.00040974,5]
[354443729,1740499843104,-500.0,0.00040974,5]
[354443733,1740499843115,-500.0,0.00040974,5]
[354443737,1740499843125,-500.0,0.00040974,5]
[354443740,1740499843135,-500.0,0.00040974,5]
[354443743,1740499843145,-500.0,0.00040986,115]
[354443747,1740499843156,-1171.52007771,0.00040995,30]
[354443750,1740499843166,-2000.0,0.00041,32]
[354443752,1740499843176,-609.28,0.00041,120]
[354443753,1740499843186,-1249.0500665,0.00041072,9]
[354443757,1740499843196,-774.03,0.00041095,120]
[354443760,1740499843207,-774.03,0.00041095,120]
[354443763,1740499843218,-774.03,0.00041095,120]
[354443765,1740499843228,-774.03,0.00041095,120]
[354443767,1740499843240,-774.03,0.00041095,120]
[354443769,1740499843250,-774.03,0.00041095,120]
[354443771,1740499843261,-774.03,0.00041095,120]
[354443773,1740499843272,-774.03,0.00041095,120]
[354443775,1740499843282,-774.03,0.00041095,120]
[354443777,1740499843292,-774.03,0.00041095,120]
[354443779,1740499843301,-774.03,0.00041095,120]
[354443781,1740499843313,-774.03,0.00041095,120]
[354443783,1740499843324,-774.03,0.00041095,120]
[354443785,1740499843334,-774.03,0.00041095,120]
[354443786,1740499843344,-774.03,0.00041095,120]
[354443787,1740499843355,-774.03,0.00041095,120]
[354443819,1740499843600,-774.03,0.00041095,120]
[354443821,1740499843611,-774.03,0.00041095,120]
[354443822,1740499843621,-774.03,0.00041095,120]
[354443823,1740499843632,-774.03,0.00041095,120]
[354443824,1740499843641,-774.03,0.00041095,120]
[354443825,1740499843651,-774.03,0.00041095,120]
[354443826,1740499843662,-774.03,0.00041095,120]
[354443827,1740499843672,-774.15071896,0.00041095,120]
[354443828,1740499843682,-18478.24,0.00041095,120]
[354443830,1740499843692,-500.0,0.00041286,75]
[354443832,1740499843702,-500.0,0.00041386,108]
[354443834,1740499843712,-164.78299959,0.00041473,2]
[354443836,1740499843722,-167.21,0.0004148,120]
[354443838,1740499843732,-500.0,0.00041486,45]
[354443840,1740499843742,-150.5,0.0004149,120]
[354443842,1740499843751,-2000.0,0.00041557,30]
[354443844,1740499843761,-2000.0,0.00041557,30]
[354443847,1740499843771,-2000.0,0.00041557,30]
[354443850,1740499843781,-848.0,0.00041557,30]
[354443853,1740499843791,-500.0,0.00041557,30]
[354443856,1740499843801,-2000.0,0.00041557,30]
[354443859,1740499843812,-848.0,0.00041557,30]
[354443861,1740499843821,-2000.0,0.00041557,30]
[354443863,1740499843834,-2000.0,0.00041557,30]
[354443866,1740499843844,-848.0,0.00041557,30]
[354443868,1740499843854,-250.0,0.00041557,10]
[354443870,1740499843864,-260.88904,0.00041557,10]
[354443872,1740499843883,-826332.0,0.00041557,30]
[354443874,1740499843893,-500.0,0.00041573,10]
[354443876,1740499843903,-500.0,0.00041573,10]
[354443878,1740499843914,-500.0,0.00041573,10]
[354443880,1740499843925,-500.0,0.00041573,10]
[354443882,1740499843935,-500.0,0.00041573,10]
[354443884,1740499843944,-500.0,0.00041573,10]
[354443886,1740499843955,-500.0,0.00041573,10]
[354443889,1740499843966,-256.97682347,0.00041573,10]
[354443891,1740499843977,-500.0,0.00041573,10]
[354443893,1740499843988,-500.0,0.00041573,10]
[354443895,1740499843999,-500.0,0.00041573,10]
[354443897,1740499844009,-500.0,0.00041573,10]
[354443899,1740499844019,-500.0,0.00041586,117]
[354443901,1740499844030,-500.0,0.00041886,37]
[354443903,1740499844041,-500.0,0.00041986,79]
[354443905,1740499844050,-2000.0,0.00042,32]
[354443907,1740499844068,-500.0,0.00042186,56]
[354443908,1740499844081,-151.0,0.000422,13]
[354443911,1740499844091,-500.0,0.00042286,19]
[354443913,1740499844102,-500.0,0.00042386,36]
[354443915,1740499844112,-1249.0500665,0.00042417,9]
[354443917,1740499844121,-5000.006,0.000425,80]
[354443919,1740499844132,-500.0,0.00042586,7]
[354443921,1740499844142,-168919.53,0.000426,30]
[354443923,1740499844152,-500.0,0.00042686,115]
[354443925,1740499844161,-500.0,0.00042886,63]
[354443927,1740499844171,-500.0,0.00042986,54]
[354443929,1740499844182,-500.0,0.00043,30]
[354443931,1740499844191,-500.0,0.00043,30]
[354443933,1740499844203,-500.0,0.00043,120]
[354443935,1740499844213,-1000.0,0.00043,30]
[354443937,1740499844223,-2000.0,0.00043,48]
[354443939,1740499844234,-3215.5722012,0.00043064,4]
[354443941,1740499844244,-311.0,0.0004322,67]
[354443943,1740499844255,-500.0,0.00043286,29]
[354443945,1740499844265,-500.0,0.00043386,67]
[354443947,1740499844275,-500.0,0.00043486,100]
[354443949,1740499844285,-500.0,0.00043586,118]
[354443951,1740499844295,-500.0,0.00043686,29]
[354443953,1740499844305,-159.870676,0.00043699,2]
[354443955,1740499844316,-151.0,0.000437,12]
[354443957,1740499844328,-1249.0500665,0.00043762,9]
[354443959,1740499844339,-500.0,0.00043786,36]
[354443962,1740499844349,-500.0,0.00043886,2]
[354443963,1740499844359,-500.0,0.0004394,60]
[354443965,1740499844369,-1284.84989806,0.00043942,2]
[354443968,1740499844380,-151.0,0.00043942,2]
[354443970,1740499844389,-500.0,0.0004395,10]
[354443972,1740499844400,-500.0,0.00043986,2]
[354443974,1740499844410,-500.0,0.00044,30]
[354443976,1740499844419,-500.0,0.00044,30]
[354443978,1740499844429,-500.0,0.00044,30]
[354443980,1740499844439,-1000.0,0.00044,30]
[354443982,1740499844452,-152.0,0.00044,90]
[354443984,1740499844462,-185.0,0.00044,90]
[354443986,1740499844473,-500.0,0.00044086,2]
[354443988,1740499844483,-500.0,0.00044186,2]
[354443990,1740499844495,-500.0,0.00044286,2]
[354443992,1740499844506,-500.0,0.00044307,10]
[354443994,1740499844517,-5000.0,0.00044326,14]
[354443997,1740499844527,-500.0,0.00044436,10]
[354443999,1740499844540,-50000.0,0.00045,45]
[354444001,1740499844549,-500.0,0.00045,30]
[354444003,1740499844559,-500.0,0.00045,120]
[354444005,1740499844569,-1000.0,0.00045,30]
[354444007,1740499844581,-10000.0,0.00045,90]
[354444008,1740499844591,-168919.53,0.000451,30]
[354444011,1740499844602,-1249.0500665,0.00045107,10]
[354444013,1740499844613,-151.0,0.000452,25]
[354444015,1740499844623,-21330.8355391,0.00045282,120]
[354444017,1740499844633,-18478.24,0.00045479,120]
[354444019,1740499844642,-159.870676,0.00045548,2]
[354444021,1740499844652,-1000.0,0.00045847,10]
[354444023,1740499844662,-150.0,0.00045847,3]
[354444025,1740499844673,-50000.0,0.00046,46]
[354444026,1740499844683,-500.0,0.00046,30]
[354444029,1740499844692,-500.0,0.00046,30]
[354444031,1740499844703,-2000.0,0.00046,60]
[354444033,1740499844714,-468.0115499,0.00046,30]
[354444035,1740499844724,-1179.26999364,0.00046,120]
[354444037,1740499844734,-185.0,0.00046027,90]
[354444039,1740499844744,-167.0,0.00046305,30]
[354444041,1740499844754,-159.32513087,0.00046305,30]
[354444043,1740499844763,-349.0,0.00046305,30]
[354444045,1740499844773,-349.0,0.00046305,30]
[354444047,1740499844783,-349.0,0.00046305,30]
[354444049,1740499844793,-315.0,0.00046305,30]
[354444051,1740499844803,-349.0,0.00046305,30]
[354444053,1740499844812,-315.0,0.00046305,30]
[354444055,1740499844822,-315.0,0.00046305,30]
[354444057,1740499844833,-315.0,0.00046305,30]
[354444059,1740499844843,-349.0,0.00046305,30]
[354444061,1740499844853,-315.0,0.00046305,30]
[354444063,1740499844862,-349.0,0.00046305,30]
[354444065,1740499844872,-315.0,0.00046305,30]
[354444067,1740499844881,-349.0,0.00046305,30]
[354444069,1740499844891,-315.0,0.00046305,30]
[354444071,1740499844901,-349.0,0.00046305,30]
[354444073,1740499844910,-315.0,0.00046305,30]
[354444075,1740499844920,-349.0,0.00046305,30]
[354444077,1740499844929,-315.0,0.00046305,30]
[354444079,1740499844939,-349.0,0.00046305,30]
[354444080,1740499844949,-315.0,0.00046305,30]
[354444083,1740499844959,-349.0,0.00046305,30]
[354444085,1740499844969,-315.0,0.00046305,30]
[354444087,1740499844980,-349.0,0.00046305,30]
[354444089,1740499844990,-315.0,0.00046305,30]
[354444091,1740499844999,-349.0,0.00046305,30]
[354444093,1740499845010,-315.0,0.00046305,30]
[354444094,1740499845020,-349.0,0.00046305,30]
[354444096,1740499845029,-315.0,0.00046305,30]
[354444098,1740499845039,-349.0,0.00046305,30]
[354444099,1740499845048,-349.0,0.00046305,30]
[354444101,1740499845058,-315.0,0.00046305,30]
[354444103,1740499845068,-349.0,0.00046305,30]
[354444105,1740499845079,-315.0,0.00046305,30]
[354444106,1740499845089,-349.0,0.00046305,30]
[354444108,1740499845098,-315.0,0.00046305,30]
[354444110,1740499845109,-349.0,0.00046305,30]
[354444112,1740499845119,-315.0,0.00046305,30]
[354444113,1740499845128,-349.0,0.00046305,30]
[354444115,1740499845138,-315.0,0.00046305,30]
[354444117,1740499845149,-451.02595286,0.00046305,30]
[354444119,1740499845159,-315.0,0.00046305,30]
[354444120,1740499845168,-315.0,0.00046305,30]
[354444122,1740499845178,-315.0,0.00046305,30]
[354444124,1740499845187,-315.0,0.00046305,30]
[354444126,1740499845197,-315.0,0.00046305,30]
[354444128,1740499845206,-315.0,0.00046305,30]
[354444130,1740499845216,-293.49389301,0.00046305,30]
[354444131,1740499845226,-311.0,0.0004633,76]
[354444133,1740499845235,-2000.0,0.00046395,10]
[354444135,1740499845245,-250.0,0.00046395,3]
[354444137,1740499845255,-1249.0500665,0.00046452,10]
[354444138,1740499845264,-1000.0,0.00046453,10]
[354444140,1740499845274,-1000.0,0.00046453,10]
[354444142,1740499845284,-1000.0,0.00046453,10]
[354444143,1740499845294,-189.21557083,0.00046453,10]
[354444144,1740499845304,-1002.26787618,0.00046453,10]
[354444145,1740499845314,-1000.0,0.00046453,10]
[354444146,1740499845326,-1000.0,0.00046453,10]
[354444147,1740499845336,-1000.0,0.00046453,10]
[354444148,1740499845346,-1000.0,0.00046453,10]
[354444149,1740499845356,-1000.0,0.00046453,10]
[354444150,1740499845367,-500.53966456,0.00046453,10]
[354444151,1740499845377,-150.0,0.00046473,10]
[354444152,1740499845387,-168919.53,0.000465,30]
[354444153,1740499845396,-6574.90236457,0.00046588,2]
[354444154,1740499845407,-3215.5722012,0.00046688,4]
[354444155,1740499845416,-68649.84022598,0.0004688,120]
[354444156,1740499845426,-3387.20398178,0.000469,2]
[354444157,1740499845436,-151.0,0.000469,29]
[354444159,1740499845446,-3000.0,0.00046943,10]
[354444161,1740499845457,-294.5553053,0.00046943,3]
[354444162,1740499845467,-1500.0,0.0004695,10]
[354444164,1740499845477,-1500.0,0.0004695,10]
[354444166,1740499845487,-1500.0,0.0004695,10]
[354444167,1740499845499,-1500.0,0.0004695,10]
[354444168,1740499845510,-1500.0,0.0004695,10]
[354444169,1740499845520,-1500.0,0.0004695,10]
[354444170,1740499845530,-50000.0,0.00047,47]
[354444171,1740499845542,-500.0,0.00047,30]
[354444172,1740499845553,-1000.0,0.00047,30]
[354444173,1740499845564,-500.0,0.00047,30]
[354444174,1740499845574,-250.0,0.00047021,10]
[354444175,1740499845589,-1073.46436203,0.00047052,10]
[354444176,1740499845600,-1000.0,0.00047052,10]
[354444177,1740499845610,-1000.0,0.00047052,10]
[354444178,1740499845620,-1000.0,0.00047052,10]
[354444179,1740499845630,-1000.0,0.00047052,10]
[354444180,1740499845640,-1000.0,0.00047052,10]
[354444181,1740499845650,-943.364172,0.00047052,10]
[354444182,1740499845660,-510.72161371,0.00047052,10]
[354444183,1740499845670,-1097.46128311,0.00047052,10]
[354444184,1740499845680,-500.0,0.00047052,10]
[354444185,1740499845690,-252.0965,0.00047196,120]
[354444186,1740499845699,-159.870676,0.00047397,2]
[354444187,1740499845710,-395853.60557051,0.000474,120]
[354444203,1740499846580,-500.0,0.00034463,7]
[354444204,1740499846591,-500.0,0.00034463,7]
[354444205,1740499846601,-281.78946314,0.00034463,7]
[354444206,1740499846618,-503.66155967,0.00034463,7]
[354444207,1740499846628,-785.45102281,0.00034463,7]
[354444208,1740499846638,-500.0,0.00034463,7]
[354444209,1740499846649,-500.0,0.00034463,7]
[354444210,1740499846658,-785.45102281,0.00034463,7]
[354444211,1740499846668,-500.0,0.00034463,7]